[Event "1000GM MLK Day RR IM-Norm 2024"]
[Site "Sunnyvale"]
[Date "2024.01.22"]
[Round "9.3"]
[White "Chiang, Jacob"]
[Black "Figueredo Losada, Leonel"]
[Result "1/2-1/2"]
[ECO "D31"]
[WhiteElo "2200"]
[BlackElo "2381"]
[Annotator "RC"]
[PlyCount "220"]
[EventDate "2024.01.12"]
[EventType "tourn"]
[EventCountry "USA"]
[SourceTitle "playchess.com"]
[Source "ChessBase"]
[SourceQuality "1"]
[TimeControl "5400+30"]

1. c4 {[%emt 0:00:01]} e6 {[%emt 0:07:25]} 2. Nc3 {[%emt 0:00:05]} d5 {[%emt 0:00:16]} 3. d4 {[%emt 0:00:04]} Bb4 {[%emt 0:00:03]} 4. Nf3 {[%emt 0:00:13]} dxc4 {[%emt 0:00:07]} 5. e3 {[%emt 0:00:22]} b5 {[%emt 0:00:09]} 6. a4 {[%emt 0:00:20]} c6 {[%emt 0:00:05]} 7. axb5 {[%emt 0:00:04]} cxb5 {[%emt 0:00:07]} 8. Bd2 {[%emt 0:00:19]} Qb6 {[%emt 0:01:21]} 9. Be2 {[%emt 0:00:29]} Nf6 {[%emt 0:00:18]} 10. O-O {[%emt 0:00:27]} O-O {[%emt 0:01:40]} 11. Qc2 {[%emt 0:02:09]} Bb7 {[%emt 0:00:26]} 12. Ne5 {[%emt 0:06:03]} Nc6 {[%emt 0:09:27]} 13. b3 {[%emt 0:04:23]} cxb3 {[%emt 0:13:54]} 14. Qxb3 {[%emt 0:00:24]} a5 {[%emt 0:00:23]} 15. Nxb5 {[%emt 0:01:44]} Nxe5 {[%emt 0:19:39]} 16. Bxb4 {[%emt 0:01:01]} axb4 {[%emt 0:01:48]} 17. dxe5 {[%emt 0:00:15]} Nd5 {[%emt 0:00:42]} 18. Nd6 {[%emt 0:07:46]} Nc3 {[%emt 0:01:27]} 19. Bf3 {[%emt 0:02:58]} Bxf3 {[%emt 0:00:29]} 20. gxf3 {[%emt 0:00:10]} Qc5 {[%emt 0:02:24]} 21. f4 {[%emt 0:00:46]} Qc6 {[%emt 0:02:24]} 22. e4 {[%emt 0:01:54]} Qc5 {[%emt 0:04:25]} 23. Kg2 {[%emt 0:07:50]} Qd4 {[%emt 0:03:07]} 24. Rae1 {[%emt 0:04:21]} Ra2 {[%emt 0:06:41]} 25. Nb5 {[%emt 0:01:54]} Qd2 {[%emt 0:00:59]} 26. Qxb4 {[%emt 0:00:13]} Nxb5 {[%emt 0:00:33]} 27. Qxb5 {[%emt 0:00:01]} Qxf4 {[%emt 0:00:06]} 28. Qb3 {[%emt 0:01:05]} Ra5 {[%emt 0:00:43]} 29. Qg3 {[%emt 0:00:24]} Qxe5 {[%emt 0:00:12]} 30. Qxe5 {[%emt 0:00:11]} Rxe5 {[%emt 0:00:04]} 31. f3 {[%emt 0:01:34]} Rc8 {[%emt 0:00:18]} 32. Rc1 {[%emt 0:00:28]} Rxc1 {[%emt 0:00:22]} 33. Rxc1 {[%emt 0:00:05]} g6 {[%emt 0:00:20]} 34. Kg3 {[%emt 0:00:20]} Kg7 {[%emt 0:00:04]} 35. Rc4 {[%emt 0:00:45]} Ra5 {[%emt 0:01:12]} 36. Rc7 Kf6 {[%emt 0:00:34]} 37. Rb7 {[%emt 0:02:21]} Rg5+ {[%emt 0:04:59]} 38. Kf2 {[%emt 0:00:20]} Rh5 {[%emt 0:00:19]} 39. Kg3 {[%emt 0:00:16]} g5 {[%emt 0:00:06]} 40. Ra7 {[%emt 0:03:02]} Rh4 {[%emt 0:00:10]} 41. Rb7 {[%emt 0:01:30]} Rf4 {[%emt 0:00:07]} 42. h3 {[%emt 0:00:13]} Kg6 {[%emt 0:02:04]} 43. Rb8 {[%emt 0:00:25]} Kg7 {[%emt 0:04:08]} 44. Rb5 {[%emt 0:00:22]} h6 {[%emt 0:00:11]} 45. Rb8 {[%emt 0:00:19]} Rf6 {[%emt 0:00:10]} 46. Rb5 {[%emt 0:00:25]} Rg6 {[%emt 0:00:11]} 47. Kg4 {[%emt 0:01:44]} Kh7 {[%emt 0:00:30]} 48. f4 {[%emt 0:04:43]} gxf4+ {[%emt 0:01:32]} 49. Kxf4 {[%emt 0:00:36]} Rg1 {[%emt 0:00:12]} 50. h4 {[%emt 0:00:19]} Kg7 {[%emt 0:01:07]} 51. Ra5 {[%emt 0:01:28]} Rb1 {[%emt 0:01:45]} 52. Rc5 {[%emt 0:00:39]} Rb4 {[%emt 0:00:05]} 53. Kf3 {[%emt 0:01:42]} Kf6 {[%emt 0:01:30]} 54. Rh5 {[%emt 0:02:22]} Kg6 {[%emt 0:00:03]} 55. Re5 {[%emt 0:00:29]} Rb1 {[%emt 0:00:14]} 56. Ra5 {[%emt 0:01:09]} Rh1 {[%emt 0:00:32]} 57. Kg3 {[%emt 0:01:44]} Rg1+ {[%emt 0:00:07]} 58. Kf3 {[%emt 0:01:11]} Rh1 {[%emt 0:04:11]} 59. Kg3 {[%emt 0:00:12]} h5 {[%emt 0:02:23]} 60. Ra8 {[%emt 0:00:28]} Kg7 {[%emt 0:01:19]} 61. Ra5 {[%emt 0:00:31]} Kh6 {[%emt 0:01:10]} 62. Ra8 {[%emt 0:01:27]} Rb1 {[%emt 0:00:44]} 63. Kf3 {[%emt 0:02:57]} Rb3+ {[%emt 0:00:30]} 64. Kg2 {[%emt 0:01:51]} Re3 {[%emt 0:00:08]} 65. Rh8+ {[%emt 0:00:11]} Kg7 {[%emt 0:01:52]} 66. Rxh5 {[%emt 0:00:04]} Rxe4 {[%emt 0:00:03]} 67. Kg3 {[%emt 0:00:45]} f6 {[%emt 0:00:35]} 68. Ra5 {[%emt 0:01:09]} f5 {[%emt 0:00:16]} 69. Ra7+ {[%emt 0:00:43]} Kg6 {[%emt 0:00:06]} 70. Ra8 {[%emt 0:00:03]} Rg4+ {[%emt 0:01:52]} 71. Kh3 {[%emt 0:00:05]} Kf6 {[%emt 0:00:06]} 72. Ra6 {[%emt 0:00:50]} Rg8 {[%emt 0:00:55]} 73. Ra4 {[%emt 0:00:14]} Rb8 {[%emt 0:00:15]} 74. Ra3 {[%emt 0:00:19]} Rb4 {[%emt 0:00:18]} 75. Rg3 {[%emt 0:00:16]} e5 {[%emt 0:00:10]} 76. h5 {[%emt 0:00:05]} f4 {[%emt 0:01:00]} 77. Rg8 {[%emt 0:00:19]} Rb1 {[%emt 0:01:20]} 78. Kg2 {[%emt 0:00:16]} e4 {[%emt 0:01:25]} 79. h6 {[%emt 0:00:23]} Rb7 {[%emt 0:00:34]} 80. Rg4 {[%emt 0:00:21]} Kf5 {[%emt 0:01:41]} 81. Rg7 {[%emt 0:00:07]} Rb6 {[%emt 0:00:21]} 82. h7 {[%emt 0:00:10]} Rh6 {[%emt 0:00:02]} 83. Rf7+ {[%emt 0:00:32]} Ke5 {[%emt 0:00:08]} 84. Kf2 {[%emt 0:00:14]} Rh4 {[%emt 0:00:59]} 85. Re7+ {[%emt 0:01:09]} Kf5 {[%emt 0:00:05]} 86. Rf7+ {[%emt 0:00:24]} Kg5 {[%emt 0:01:14]} 87. Rg7+ {[%emt 0:00:59]} Kf6 {[%emt 0:00:16]} 88. Rg4 {[%emt 0:00:25]} Rh2+ {[%emt 0:00:51]} 89. Kg1 {[%emt 0:00:03]} Rxh7 {[%emt 0:00:07]} 90. Rxf4+ {[%emt 0:00:03]} Ke5 {[%emt 0:00:03]} 91. Rf8 {[%emt 0:01:12]} Kd4 {[%emt 0:04:45]} 92. Ra8 {[%emt 0:05:57]} Rf7 {[%emt 0:00:00]} 93. Ra4+ {[%emt 0:00:20]} Kd3 {[%emt 0:00:00]} 94. Ra3+ {[%emt 0:00:08]} Kc2 {[%emt 0:00:00]} 95. Ra2+ {[%emt 0:00:16]} Kb3 {[%emt 0:00:00]} 96. Re2 {[%emt 0:00:07]} Rf4 {[%emt 0:00:00]} 97. Rf2 {[%emt 0:00:26]} Rh4 {[%emt 0:00:00]} 98. Kf1 {[%emt 0:00:18]} Kc3 {[%emt 0:00:00]} 99. Ke2 {[%emt 0:00:05]} Kd4 {[%emt 0:00:00]} 100. Rg2 {[%emt 0:00:18]} Rh3 {[%emt 0:04:30]} 101. Rg8 {[%emt 0:00:50]} Rh2+ {[%emt 0:00:00]} 102. Kf1 {[%emt 0:01:10]} Kd3 {[%emt 0:00:00]} 103. Rd8+ {[%emt 0:02:05]} Ke3 {[%emt 0:00:00]} 104. Ra8 {[%emt 0:00:36]} Rh1+ {[%emt 0:00:00]} 105. Kg2 {[%emt 0:00:02]} Rd1 {[%emt 0:00:00]} 106. Re8 {[%emt 0:00:11]} Re1 {[%emt 0:00:00]} 107. Ra8 {[%emt 0:00:23]} Rd1 {[%emt 0:00:00]} 108. Re8 {[%emt 0:00:04]} Rd4 {[%emt 0:00:00]} 109. Re7 {[%emt 0:00:58]} Kd3 {[%emt 0:00:00]} 110. Kf2 {[%emt 0:00:14]} Rd5 {[%emt 0:00:00]} 1/2-1/2

[Event "1000GM MLK Day RR IM-Norm 2024"]
[Site "Sunnyvale"]
[Date "2024.01.22"]
[Round "9.4"]
[White "Delgado Ramirez, Neuris"]
[Black "Guo, Ethan"]
[Result "1-0"]
[ECO "B23"]
[WhiteElo "2517"]
[BlackElo "2099"]
[Annotator "TA"]
[PlyCount "69"]
[EventDate "2024.01.12"]
[EventType "tourn"]
[EventCountry "USA"]
[SourceTitle "playchess.com"]
[Source "ChessBase"]
[SourceQuality "1"]
[TimeControl "5400+30"]

{[%evp 9,69,0,0,0,0,0,0,-22,22,14,15,0,0,0,18,4,7,-19,0,-37,0,0,0,0,10,-11,50,54,46,31,70,60,147,145,140,107,114,106,156,151,210,210,198,149,167,195,198,186,223,233,270,284,242,281,273,276,285,260,294,279,260,251]} 1. e4 {[%emt 0:10:44]} c5 {[%emt 0:00:02]} 2. Nc3 {[%emt 0:00:07]} d6 {[%emt 0:00:03]} 3. f4 {[%emt 0:00:07]} g6 {[%emt 0:00:04]} 4. d4 {[%emt 0:00:10]} cxd4 {[%emt 0:00:19]} 5. Qxd4 {[%emt 0:00:04]} Nf6 {[%emt 0:00:20]} 6. Nf3 {[%emt 0:00:27]} Bg7 {[%emt 0:00:40]} 7. Bd3 {[%emt 0:00:10]} O-O {[%emt 0:00:18]} 8. Qf2 {[%emt 0:00:06] The position is equal.} Nc6 {[%emt 0:01:23]} 9. O-O {[%emt 0:02:11]} Bg4 {[%emt 0:04:11]} (9... e5 {keeps more tension.} 10. Qh4 d5 11. fxe5 Nxe4 12. Qxd8 Rxd8 13. Nxd5 Ng3) 10. a3 {[%emt 0:05:17]} Bxf3 {[%emt 0:01:28]} 11. Qxf3 {[%emt 0:00:11]} Rc8 {[%emt 0:00:13]} 12. Be3 {[%emt 0:01:00]} Nd7 {[%emt 0:00:33]} 13. Rad1 {[%emt 0:00:17]} Qa5 {[%emt 0:02:58]} 14. Kh1 {[%emt 0:01:04]} Nc5 {[%emt 0:02:16]} (14... Bxc3 {is interesting.} 15. bxc3 Qxc3 16. Qh3 Nc5) 15. Bd2 {[%emt 0:04:33] aiming for b4.} Nxd3 {[%emt 0:01:25]} 16. Qxd3 {[%emt 0:00:39]} Qb6 {[%emt 0:01:28]} 17. Bc1 {[%emt 0:04:08]} a6 {[%emt 0:12:32]} (17... Bxc3 $11 18. Qxc3 Nb8) 18. Nd5 $14 {[%emt 0:01:52]} Qd8 {[%emt 0:00:50]} 19. c3 {[%emt 0:01:13]} b5 {[%emt 0:00:48]} 20. f5 {[%emt 0:01:08]} Ne5 {[%emt 0:04:33]} (20... e6 $1 $14) 21. Qh3 $16 {[%emt 0:00:14]} Rc4 {[%emt 0:02:42]} 22. Rde1 {[%emt 0:03:39]} ({Don't play} 22. Bg5 $6 f6 23. Be3 (23. fxg6 hxg6 24. Be3 Rxe4 $11) 23... Rxe4 $11) 22... Re8 {[%emt 0:02:17]} 23. Bg5 {[%emt 0:01:19] f6 would be deadly.} f6 {[%emt 0:01:12]} (23... Nd7 $142) 24. Bf4 {[%emt 0:03:26] Strongly threatening Bxe5. White is more active.} g5 {[%emt 0:03:01]} (24... Rc6 $16 25. Nb4 Rb6) 25. Bxe5 $1 $18 {[%emt 0:00:12]} dxe5 {[%emt 0:00:06]} 26. Qf3 {[%emt 0:02:39]} (26. Rd1 $18) 26... e6 {[%emt 0:01:27]} 27. fxe6 {[%emt 0:01:57]} Rxe6 {[%emt 0:00:07]} 28. Rd1 {[%emt 0:00:20] Black must now prevent Ne3.} Rd6 {[%emt 0:02:20]} 29. Ne3 {[%emt 0:00:24]} Rc7 {[%emt 0:00:24] [#]} 30. Rxd6 $1 {[%emt 0:00:17]} Qxd6 {[%emt 0:00:09] [#]} 31. Rd1 $1 {[%emt 0:00:04]} Qf8 {[%emt 0:00:29] White has a decisive advantage.} 32. Nf5 {[%emt 0:00:46]} h6 {[%emt 0:00:54]} 33. Rd6 {[%emt 0:02:25]} a5 {[%emt 0:00:15] Black is weak on the light squares} 34. Qd3 {[%emt 0:00:18] Threatens to win with Rd8.} Kh7 {[%emt 0:00:13]} 35. Qxb5 {[%emt 0:02:41] Weighted Error Value: White=0.09 (flawless) /Black=0.22 (precise)} 1-0

[Event "1000GM MLK Day RR IM-Norm 2024"]
[Site "Sunnyvale"]
[Date "2024.01.22"]
[Round "9.5"]
[White "Arenas, David"]
[Black "Tang, Dylan"]
[Result "1/2-1/2"]
[ECO "C68"]
[WhiteElo "2406"]
[BlackElo "2206"]
[Annotator "RC"]
[PlyCount "64"]
[EventDate "2024.01.12"]
[EventType "tourn"]
[EventCountry "USA"]
[SourceTitle "playchess.com"]
[Source "ChessBase"]
[SourceQuality "1"]
[TimeControl "5400+30"]

1. e4 {[%emt 0:10:27]} e5 {[%emt 0:00:46]} 2. Nf3 {[%emt 0:00:09]} Nc6 {[%emt 0:00:05]} 3. Bb5 {[%emt 0:00:04]} a6 {[%emt 0:00:07]} 4. Bxc6 {[%emt 0:00:05]} dxc6 {[%emt 0:00:05]} 5. d4 {[%emt 0:00:03]} exd4 {[%emt 0:00:07]} 6. Qxd4 {[%emt 0:00:04]} Qxd4 {[%emt 0:00:10]} 7. Nxd4 {[%emt 0:00:03]} Bd7 {[%emt 0:00:08]} 8. Be3 {[%emt 0:00:14]} O-O-O {[%emt 0:00:32]} 9. Nc3 {[%emt 0:00:07]} Ne7 {[%emt 0:01:38]} 10. O-O-O {[%emt 0:00:28]} Ng6 {[%emt 0:01:37]} 11. f3 {[%emt 0:06:11]} f6 {[%emt 0:02:25]} 12. Nde2 {[%emt 0:04:14]} Bd6 {[%emt 0:05:58]} 13. Na4 {[%emt 0:06:02]} Kb8 {[%emt 0:13:31]} 14. Nc5 {[%emt 0:04:33]} Bc8 {[%emt 0:01:44]} 15. Nd3 {[%emt 0:00:08]} Rhe8 {[%emt 0:01:57]} 16. Nc3 {[%emt 0:03:06]} b6 {[%emt 0:08:25]} 17. g4 {[%emt 0:03:58]} Ne5 {[%emt 0:04:01]} 18. Nxe5 {[%emt 0:00:40]} fxe5 {[%emt 0:00:38]} 19. h4 {[%emt 0:10:21]} Rf8 {[%emt 0:03:43]} 20. Rh3 {[%emt 0:00:24]} Rf7 {[%emt 0:00:11]} 21. Rg3 {[%emt 0:49:39]} Rdf8 {[%emt 0:02:48]} 22. Rf1 {[%emt 0:00:00]} Bb7 {[%emt 0:02:50]} 23. Nb1 {[%emt 0:00:00]} a5 {[%emt 0:03:03]} 24. a3 {[%emt 0:00:00]} Kc8 {[%emt 0:02:24]} 25. Nd2 {[%emt 0:00:00]} Kd7 {[%emt 0:00:36]} 26. g5 {[%emt 0:00:00]} Re7 {[%emt 0:01:28]} 27. Rf2 {[%emt 0:00:00]} c5 {[%emt 0:01:22]} 28. h5 {[%emt 0:00:00]} Ke6 {[%emt 0:00:56]} 29. Nf1 {[%emt 0:00:00]} Bc6 {[%emt 0:01:46]} 30. Nd2 {[%emt 0:00:00]} Bb7 {[%emt 0:00:20]} 31. Nf1 {[%emt 0:00:00]} Bc6 {[%emt 0:00:03]} 32. Nd2 {[%emt 0:00:00]} Bb7 {[%emt 0:00:05]} 1/2-1/2